bitfinex-derivatives/quotes_ETHF0:USTF0_20210102
["timestamp","ask_amount","ask_price","bid_price","bid_amount"]
[1609581142731,7.78766186,728.0,727.0,100.3551]
[1609581143531,7.78766186,728.0,726.75,19.029]
[1609581143532,7.78766186,728.0,727.99,6.01438]
[1609581144733,7.78295731,727.94,727.73,4.232]
[1609581145433,7.78295731,727.94,727.76,6.01438]
[1609581146233,7.78804159,727.98,727.76,6.01438]
[1609581146734,7.77853827,727.82,727.76,6.01438]
[1609581148637,7.78511303,727.94,727.76,6.01438]
[1609581149437,7.78511303,727.94,727.93,6.01438]
[1609581150137,7.78734694,727.98,727.93,6.01438]
[1609581151439,7.80547396,727.99,727.93,6.01438]
[1609581152738,11.36465945,728.14,727.93,6.01438]
[1609581152739,5.69712264,727.94,727.93,6.01438]
[1609581157045,6.29712264,727.94,727.93,6.01438]
[1609581157644,4.65038621,728.01,727.93,6.01438]
[1609581157845,5.02419077,727.94,727.93,6.01438]
[1609581159046,7.81229667,728.14,727.93,6.01438]
[1609581159547,7.81229667,728.14,728.13,6.01438]
[1609581160147,7.81229667,728.14,727.78,100.0889]
[1609581160847,7.81683303,728.2,727.78,100.0889]
[1609581161450,7.81683303,728.2,728.19,6.01438]
[1609581162749,5.02350997,728.2,728.19,6.01438]
[1609581165356,7.81588932,728.23,728.19,6.01438]
[1609581166957,7.81588932,728.23,727.82,4.369]
[1609581167157,11.24288932,728.23,727.82,4.369]
[1609581167358,7.81743041,728.22,727.82,4.369]
[1609581167560,6.01438,728.08,727.92,6.01438]
[1609581167962,3.427,728.23,727.92,6.01438]
[1609581168162,4.55532276,728.04,727.92,6.01438]
[1609581169162,4.55532276,728.04,727.82,4.369]
[1609581169365,4.55532276,728.04,727.11,104.3226]
[1609581169366,4.55576923,728.02,727.11,104.3226]
[1609581169562,6.01438,727.47,727.11,104.3226]
[1609581169761,10.62938,727.47,726.58,99.4519]
[1609581169963,10.62938,727.47,724.85,95.3891]
[1609581170161,10.62938,727.47,724.86,15.0]
[1609581170366,10.62938,727.47,724.88,24.072]
[1609581170564,10.62938,727.47,724.89,15.0]
[1609581171163,10.62938,727.47,724.9,7.7054]
[1609581171363,10.62938,727.47,724.91,15.0]
[1609581171562,6.01438,727.37,724.91,15.0]
[1609581171964,6.01438,727.37,725.69,4.029]
[1609581172163,4.53938195,727.43,725.7,15.0]
[1609581172364,4.53938195,727.43,725.71,4.029]
[1609581172565,4.53938195,727.43,725.72,101.4824]
[1609581173365,4.615,727.47,725.72,101.4824]
[1609581173565,4.615,727.47,727.46,6.01438]
[1609581174767,3.24454061,727.55,727.46,6.01438]
[1609581174967,2.61289747,727.55,727.46,6.01438]
[1609581175167,3.24575587,727.64,727.46,6.01438]
[1609581175567,3.24575587,727.64,727.63,6.01438]
[1609581176268,10.71930801,727.91,727.63,6.01438]
[1609581177368,10.09116592,728.04,727.63,6.01438]
[1609581177568,10.09116592,728.04,727.91,6.01438]
[1609581178271,5.69860685,728.02,727.91,6.01438]
[1609581178469,5.69860685,728.02,727.35,4.34]
[1609581179569,4.392,728.04,727.35,4.34]
[1609581179570,6.01438,727.62,727.41,6.01438]
[1609581179769,9.69038,727.62,727.41,6.01438]
[1609581179969,9.69038,727.62,727.2,4.171]
[1609581180170,9.69038,727.62,726.91,93.1497]
[1609581181571,9.69038,727.62,727.27,6.01438]
[1609581181773,5.02733591,727.61,727.27,6.01438]
[1609581183075,3.676,727.62,727.27,6.01438]
[1609581183476,3.676,727.62,727.6,6.01438]
[1609581183876,3.676,727.62,727.27,4.382]
[1609581184979,4.095,727.62,727.27,4.382]
[1609581185576,4.095,727.62,727.61,6.01438]
[1609581188780,4.095,727.62,727.27,4.382]
[1609581188980,85.0687,727.62,727.27,4.382]
[1609581189180,85.0687,727.62,726.99,3.038]
[1609581189580,6.01438,727.37,727.29,6.01438]
[1609581189979,6.01438,727.37,726.58,96.1798]
[1609581190682,6.01438,727.37,726.58,81.1798]
[1609581191684,3.697,727.44,727.12,6.01438]
[1609581193287,5.02867127,727.43,727.12,6.01438]
[1609581193489,6.01438,727.31,727.12,6.01438]
[1609581194288,3.697,727.44,727.12,6.01438]
[1609581194889,5.6861888,727.55,727.12,6.01438]
[1609581195290,3.24392351,727.46,727.12,6.01438]
[1609581195491,6.88092351,727.46,727.3,6.01438]
[1609581196292,3.637,727.46,727.3,6.01438]
[1609581197493,3.637,727.46,727.45,6.01438]
[1609581197695,5.02806027,727.54,727.45,6.01438]
[1609581198295,3.24555492,727.57,727.45,6.01438]
[1609581198494,3.74155492,727.62,727.45,6.01438]
[1609581198694,5.68783499,727.64,727.45,6.01438]
[1609581198695,3.24238991,727.64,727.45,6.01438]
[1609581199598,3.24238991,727.64,727.63,6.01438]
[1609581202203,3.24238991,727.64,727.63,9.10738]
[1609581204103,8.37528782,727.93,727.63,9.10738]
[1609581205706,8.37528782,727.93,727.88,6.01438]
[1609581206318,6.01438,727.94,727.88,6.01438]
[1609581206319,2.60381761,727.92,727.88,6.01438]
[1609581206518,2.60381761,727.92,727.63,3.093]
[1609581206907,2.60381761,727.92,727.2,80.4449]
[1609581207109,2.60381761,727.92,684.49,1.23415474]
[1609581207307,2.60381761,727.92,726.85,15.0]
[1609581207507,2.60381761,727.92,723.67,7.6688]
[1609581207508,2.60381761,727.92,726.69,89.3328]
[1609581207709,2.60381761,727.92,727.55,6.01438]
[1609581208109,4.431,727.96,727.55,6.01438]
[1609581208110,2.60142529,727.76,727.55,6.01438]
[1609581209109,82.67812529,727.76,727.55,6.01438]
[1609581209309,2.60076583,727.72,727.55,6.01438]
[1609581209510,2.60076583,727.72,726.99,2.7498]
[1609581209711,6.01438,727.53,727.46,6.01438]
[1609581209910,3.767,727.59,727.46,6.01438]
[1609581210110,3.767,727.59,726.77,93.7322]
[1609581210310,3.767,727.59,727.17,2.986]
[1609581211709,3.767,727.59,727.42,6.01438]
[1609581212911,2.59913087,727.62,727.42,6.01438]
[1609581213712,2.59913087,727.62,727.61,6.01438]
[1609581215212,15.19746166,727.75,727.61,6.01438]
[1609581215613,15.19746166,727.75,727.74,6.01438]
[1609581217118,4.431,727.96,727.74,6.01438]
[1609581217520,5.70129422,727.97,727.74,6.01438]
[1609581217718,5.70129422,727.97,727.96,6.01438]
[1609581218320,5.70516566,728.05,727.96,6.01438]
[1609581219320,7.32744786,728.17,727.96,6.01438]
[1609581219719,7.32744786,728.17,728.16,6.01438]
[1609581221022,1.93210594,728.22,728.16,6.01438]
[1609581221821,8.36912321,728.25,728.16,6.01438]
[1609581223221,11.43191463,728.7,728.16,6.01438]
[1609581223420,11.43191463,728.7,728.17,104.3883]
[1609581223620,11.43191463,728.7,728.69,6.01438]
[1609581224221,11.43974373,728.76,728.69,6.01438]
[1609581226323,11.43974373,728.76,728.22,2.7529]
[1609581226524,14.82474373,728.76,728.22,2.7529]
[1609581227725,6.01438,728.74,728.64,6.01438]
[1609581227927,15.0,728.73,728.64,6.01438]
[1609581228129,6.01438,728.74,728.11,4.915]
[1609581228526,6.01438,728.74,728.07,3.081]
[1609581229630,6.01438,728.5,728.46,6.01438]
[1609581229829,9.58038,728.5,728.46,6.01438]
[1609581230233,3.566,728.5,728.46,6.01438]
[1609581231635,6.01438,728.47,728.46,6.01438]
[1609581231835,6.01438,728.47,728.07,3.081]
[1609581232238,3.566,728.5,728.07,3.081]
[1609581233636,3.566,728.5,728.49,6.01438]
[1609581235036,14.82474373,728.76,728.49,6.01438]
[1609581235737,14.82474373,728.76,728.7,6.01438]
[1609581236337,14.82474373,728.76,728.3,2.7535]
[1609581237737,14.82474373,728.76,728.63,6.01438]
[1609581241640,14.82474373,728.76,728.71,6.01438]
[1609581243439,14.82474373,728.76,728.72,2.7681]
[1609581244441,14.82474373,728.76,728.71,6.01438]
[1609581244841,14.82474373,728.76,728.23,97.448]
[1609581245641,14.82474373,728.76,728.73,6.01438]
[1609581247142,14.82474373,728.76,728.24,2.7696]
[1609581247745,14.82474373,728.76,728.73,6.01438]
[1609581247942,14.82474373,728.76,728.24,2.7696]
[1609581249648,14.82474373,728.76,728.67,6.01438]
[1609581252249,14.82474373,728.76,728.24,2.7696]
[1609581252447,15.0,728.75,728.01,2.7384]
[1609581252649,77.5946,728.67,728.01,2.7384]
[1609581252849,15.0,728.66,727.68,4.029]
[1609581253047,15.0,728.66,727.66,105.7161]
[1609581253447,77.5946,728.67,727.66,105.7161]
[1609581253647,6.01438,728.53,728.39,6.01438]
[1609581254047,9.76938,728.53,728.39,6.01438]
[1609581254247,3.755,728.53,728.39,6.01438]
[1609581255048,2.61681023,728.4,728.39,6.01438]
[1609581255951,2.6178649,728.48,728.39,6.01438]
[1609581256152,99.3714,728.4,728.39,6.01438]
[1609581257253,99.3714,728.4,727.7,3.159]
[1609581257454,114.3714,728.4,727.7,3.159]
[1609581257653,114.3714,728.4,727.58,102.4852]
[1609581257853,114.3714,728.4,728.17,6.01438]
[1609581258054,101.9887345,728.4,728.17,6.01438]
[1609581258857,2.61343317,728.2,728.17,6.01438]
[1609581259058,6.84543317,728.2,728.17,6.01438]
[1609581260962,4.232,728.2,728.17,6.01438]
[1609581263064,2.61309592,728.36,728.17,6.01438]
[1609581263662,2.61309592,728.36,728.35,6.01438]
[1609581265566,2.61354455,728.38,728.35,6.01438]
[1609581266565,2.61550643,728.48,728.35,6.01438]
[1609581267766,2.61550643,728.48,728.47,6.01438]
[1609581269269,3.26908332,728.51,728.47,6.01438]
[1609581270469,2.61832654,728.52,728.47,6.01438]
[1609581271771,2.61919627,728.56,728.47,6.01438]
[1609581273379,2.61740273,728.51,728.47,6.01438]
[1609581273775,7.32840273,728.51,728.47,6.01438]
[1609581274377,4.711,728.51,728.47,6.01438]
[1609581276078,7.32844418,728.51,728.47,6.01438]
[1609581276479,4.711,728.51,728.47,6.01438]
[1609581278983,2.6182449,728.59,728.47,6.01438]
[1609581279782,2.61748743,728.55,728.1,2.7176]
[1609581280381,6.10848743,728.55,728.1,2.7176]
[1609581280783,2.61684101,728.54,728.1,2.7176]
[1609581281685,2.61653299,728.52,728.1,2.7176]
[1609581281883,2.61653299,728.52,728.51,6.01438]
[1609581282183,2.61673701,728.53,728.51,6.01438]
[1609581284391,2.61677368,728.54,728.51,6.01438]
[1609581288197,2.6168048,728.53,728.51,6.01438]
[1609581289098,2.61705494,728.54,728.51,6.01438]
[1609581290600,2.6169199,728.53,728.51,6.01438]
[1609581292202,6.10829133,728.55,728.51,6.01438]
[1609581293103,6.10829133,728.55,728.26,2.756]
[1609581293504,2.61695508,728.53,728.26,2.756]
[1609581293906,2.61695508,728.53,728.52,6.01438]
[1609581294506,18.22725508,728.53,728.52,6.01438]
[1609581295106,33.22725508,728.53,728.52,6.01438]
[1609581295506,33.22725508,728.53,727.84,111.8727]
[1609581295707,30.6103,728.53,727.84,111.8727]
[1609581295906,30.6103,728.53,728.24,6.01438]
[1609581296107,2.61350521,728.29,728.24,6.01438]
[1609581296306,102.1585,728.25,727.54,81.4606]
[1609581296507,15.0,728.24,727.54,81.4606]
[1609581297508,102.1585,728.25,727.54,81.4606]
[1609581297707,102.1585,728.25,727.54,84.4276]
[1609581297908,6.01438,728.2,728.07,6.01438]
[1609581299710,2.61191176,728.18,728.07,6.01438]
[1609581301114,2.61116414,728.14,728.07,6.01438]
[1609581301314,6.86916414,728.14,728.07,6.01438]
[1609581302118,4.258,728.14,728.07,6.01438]
[1609581303522,2.418,728.14,728.07,6.01438]
[1609581303922,10.1980936,728.23,728.07,6.01438]
[1609581304723,4.884,728.29,728.07,6.01438]
[1609581304922,2.61760268,728.36,728.07,6.01438]
[1609581305925,2.61884607,728.41,728.35,6.01438]
[1609581307329,2.61910286,728.43,728.35,6.01438]
[1609581311133,6.01438,728.69,728.35,6.01438]
[1609581311134,2.62214234,728.41,728.35,6.01438]
[1609581312032,2.62602172,728.4,728.35,6.01438]
[1609581312533,5.79902172,728.4,728.35,6.01438]
[1609581313637,2.62598776,728.39,728.35,6.01438]
[1609581314435,2.62550335,728.37,728.35,6.01438]
[1609581315737,3.173,728.4,728.35,6.01438]
[1609581315738,2.62530559,728.36,728.35,6.01438]
[1609581316438,3.28051346,728.39,728.35,6.01438]
[1609581317038,3.28051346,728.39,727.99,112.9449]
[1609581317240,3.28028809,728.37,727.99,112.9449]
[1609581318039,2.62327642,728.3,728.25,6.01438]
[1609581318842,2.62367557,728.27,728.25,6.01438]
[1609581322546,2.62441634,728.33,728.25,6.01438]
[1609581323853,2.62337361,728.34,728.25,6.01438]
[1609581324048,2.62337361,728.34,728.25,8.71968]
[1609581324249,2.62337361,728.34,728.33,6.01438]
[1609581325450,2.62296451,728.36,728.33,6.01438]
[1609581326251,3.173,728.4,728.33,6.01438]
[1609581326653,2.62590399,728.48,728.33,6.01438]
[1609581327053,2.62634875,728.47,728.33,6.01438]
[1609581328156,2.62634875,728.47,728.26,2.7074]
[1609581328355,2.62634875,728.47,728.46,6.01438]
[1609581330659,2.6268184,728.48,728.46,6.01438]
[1609581331861,3.28287174,728.53,728.46,6.01438]
[1609581332965,2.6265964,728.47,728.46,6.01438]
[1609581334469,3.2835148,728.51,728.46,6.01438]
[1609581335370,5.74957507,728.49,728.46,6.01438]
[1609581335771,5.74957507,728.49,728.04,2.7536]
[1609581335971,15.0,728.48,728.04,2.7536]
[1609581336170,15.0,728.48,727.81,94.7751]
[1609581336372,6.01438,728.43,728.17,6.01438]
[1609581337273,2.62287897,728.28,728.17,6.01438]
[1609581337473,5.96287897,728.28,728.17,6.01438]
[1609581337872,2.62257351,728.27,728.17,6.01438]
[1609581338275,2.62257351,728.27,728.26,6.01438]
[1609581338672,3.34,728.28,728.26,6.01438]
[1609581342678,2.62352167,728.3,728.26,6.01438]
[1609581343781,2.62473011,728.37,728.26,6.01438]
[1609581344383,2.62473011,728.37,728.36,6.01438]
[1609581344583,2.62473011,728.37,727.95,3.108]
[1609581344781,2.62587746,728.3,727.95,3.108]
[1609581345685,82.6292,728.18,727.95,3.108]
[1609581345885,85.6442,728.18,727.73,15.0]
[1609581346083,85.6442,728.18,727.6,105.2601]
[1609581346282,85.6442,728.18,728.17,6.01438]
[1609581347784,88.26901694,728.18,728.17,6.01438]
[1609581348585,93.75798063,728.18,728.17,6.01438]
[1609581350287,99.77236063,728.18,728.17,6.01438]
[1609581351389,103.05264952,728.18,728.17,6.01438]
[1609581352691,94.93886889,728.18,728.17,6.01438]
[1609581353492,112.10893183,728.18,728.17,6.01438]
[1609581353896,112.10893183,728.18,727.62,2.7741]
[1609581354092,29.47973183,728.18,727.62,2.7741]
[1609581354293,84.887,727.94,727.9,6.01438]
[1609581354493,89.674,727.94,727.9,6.01438]
[1609581355998,4.787,727.94,727.9,6.01438]
[1609581359702,81.7909,728.0,727.9,6.01438]
[1609581359903,6.20595235,727.99,727.9,6.01438]
[1609581360202,10.03095235,727.99,727.9,6.01438]
[1609581360403,3.825,727.99,727.9,6.01438]
[1609581361403,6.38456363,727.99,727.9,6.01438]
[1609581361903,110.816,727.91,727.9,6.01438]
[1609581364104,110.816,727.91,727.38,4.824]
[1609581364304,110.816,727.91,727.73,6.01438]
[1609581364704,15.0,727.9,727.73,6.01438]
[1609581364905,110.816,727.91,727.73,6.01438]
[1609581365307,110.816,727.91,727.23,3.887]
[1609581365505,15.0,727.91,727.23,3.887]
[1609581365706,90.1283,727.7,727.23,3.887]
[1609581365907,94.3183,727.7,726.97,85.1388]
[1609581366307,94.3183,727.7,723.68,4.029]
[1609581366308,4.19,727.7,727.4,6.01438]
[1609581366707,83.3396,727.54,727.4,6.01438]
[1609581366907,86.8246,727.54,727.4,6.01438]
[1609581368411,6.01438,727.41,727.4,6.01438]
[1609581368611,18.41248,727.41,727.4,6.01438]
[1609581369211,12.3981,727.41,727.4,6.01438]
[1609581370610,3.485,727.54,727.4,6.01438]
[1609581372110,103.3802,727.46,727.4,6.01438]
[1609581372310,107.2822,727.46,727.4,6.01438]
[1609581374313,6.01438,727.41,727.25,6.01438]
[1609581374511,6.01438,727.41,726.92,2.7333]
[1609581374911,92.1114,727.17,726.92,2.7306]
[1609581375112,96.1334,727.17,726.84,3.348]
[1609581375314,96.1334,727.17,726.54,15.0]
[1609581375514,4.022,727.17,726.54,15.0]
[1609581376317,4.022,727.17,727.13,6.01438]
[1609581376719,110.2271,727.17,727.13,6.01438]
[1609581377718,4.022,727.17,726.59,3.187]
[1609581378119,101.7611,726.96,726.59,3.187]
[1609581378320,101.7611,726.96,726.93,6.01438]
[1609581378519,105.4291,726.96,726.93,6.01438]
[1609581379118,105.4291,726.96,726.6,2.7822]
[1609581380320,111.44348,726.96,726.84,6.01438]
[1609581380522,3.668,726.96,726.84,6.01438]
[1609581380721,4.022,727.17,726.84,6.01438]
[1609581380921,3.27618864,727.32,726.84,6.01438]
[1609581382422,3.27618864,727.32,727.2,6.01438]
[1609581383623,5.74152058,727.39,727.2,6.01438]
[1609581384328,6.01438,727.33,727.2,6.01438]
[1609581384529,6.01438,727.33,726.93,2.7897]
[1609581386333,6.01438,727.33,727.21,6.01438]
[1609581386734,106.1138,727.3,727.21,6.01438]
[1609581386933,109.7698,727.3,727.21,6.01438]
[1609581388336,3.656,727.3,726.3,4.029]
[1609581388535,6.01438,727.22,725.43,27.064]
[1609581388736,98.9799,726.68,725.43,27.064]
[1609581389335,98.9799,726.68,725.43,12.064]
[1609581389536,98.9799,726.68,725.44,15.0]
[1609581390335,98.9799,726.68,726.63,6.01438]
[1609581390535,3.481,726.76,726.63,6.01438]
[1609581391736,3.481,726.76,726.32,83.3997]
[1609581392336,6.01438,726.66,726.41,6.01438]
[1609581393837,3.481,726.76,726.41,6.01438]
[1609581394038,5.73067813,727.06,726.41,6.01438]
[1609581394440,5.73067813,727.06,726.7,6.01438]
[1609581395540,13.4190345,727.08,726.7,6.01438]
[1609581395841,13.4190345,727.08,726.32,83.3997]
[1609581396042,17.3980345,727.08,726.32,83.3997]
[1609581396242,32.3980345,727.08,726.32,83.3997]
[1609581396441,6.01438,726.61,726.37,6.01438]
[1609581396641,17.3980345,727.08,726.37,6.01438]
[1609581396841,4.029,726.63,726.37,6.01438]
[1609581398446,4.029,726.63,726.5,6.01438]
[1609581401843,23.12915889,727.08,726.5,6.01438]
[1609581402444,5.72808581,727.01,726.5,6.01438]
[1609581402644,6.01438,726.75,726.6,6.01438]
[1609581404449,6.01438,726.75,726.7,0.6]
[1609581405454,110.3052,726.71,726.7,0.6]
[1609581407656,6.01438,726.75,726.7,0.6]
[1609581417463,15.3095,726.74,726.7,0.6]
[1609581417664,6.01438,726.75,726.7,0.6]
[1609581417864,80.2788,726.71,726.2,4.071]
[1609581418065,2.7562,726.7,725.76,77.5264]
[1609581418465,80.2788,726.71,725.76,77.5264]
[1609581418664,11.7579,726.7,726.1,6.01438]
[1609581419063,5.71475599,726.63,726.1,6.01438]
[1609581419866,5.71568665,726.65,726.1,6.01438]
[1609581420868,11.7579,726.7,726.4,6.01438]
[1609581421066,13.2297,726.67,725.95,4.171]
[1609581421266,11.7579,726.7,725.95,4.171]
[1609581421467,97.5388,726.6,725.95,4.171]
[1609581421666,102.2158,726.6,725.95,4.171]
[1609581422869,102.2158,726.6,726.37,6.01438]
[1609581423070,4.677,726.6,726.37,6.01438]
[1609581424774,6.01438,726.55,726.5,6.01438]
[1609581426078,6.01438,726.55,725.95,4.171]
[1609581426276,6.01438,726.55,725.93,96.1032]
[1609581426878,4.677,726.6,726.46,6.01438]
[1609581427076,3.881,726.77,726.46,6.01438]
[1609581427278,5.72041387,726.77,726.46,6.01438]
[1609581428878,5.72041387,726.77,726.66,6.01438]
[1609581429278,6.01438,726.8,726.66,6.01438]
[1609581430777,107.0264,726.7,726.66,6.01438]
[1609581430978,110.6854,726.7,726.66,6.01438]
[1609581431477,3.659,726.7,726.66,6.01438]
[1609581432677,3.659,726.7,726.36,4.162]
[1609581432878,6.01438,726.61,726.36,4.162]
[1609581433082,6.01438,726.61,726.2,110.4574]
[1609581434787,3.659,726.7,726.52,6.01438]
[1609581436190,5.72601594,726.93,726.52,6.01438]
[1609581436589,5.72936446,726.9,726.52,6.01438]
[1609581436789,6.01438,726.63,726.52,6.01438]
[1609581436989,9.02536446,726.9,726.52,6.01438]
[1609581437391,9.02536446,726.9,726.36,3.359]
[1609581437789,3.296,726.9,726.36,3.359]
[1609581438788,3.296,726.9,726.65,6.01438]
[1609581439790,3.296,726.9,726.36,3.359]
[1609581440391,3.296,726.9,726.29,2.7162]
[1609581440591,3.296,726.9,726.2,4.576]
[1609581440792,95.4402,726.64,726.42,6.01438]
[1609581440991,98.8452,726.64,726.42,6.01438]
[1609581441191,3.405,726.64,726.42,6.01438]
[1609581441791,3.405,726.64,726.27,109.7927]
[1609581441991,3.405,726.64,726.07,2.7602]
[1609581442192,3.405,726.64,726.05,4.073]
[1609581442392,3.405,726.64,725.94,99.8403]
[1609581442792,3.405,726.64,726.24,6.01438]
[1609581443891,3.405,726.64,726.06,3.749]
[1609581444091,108.0089,726.59,726.06,3.749]
[1609581444891,108.0089,726.59,726.07,6.01438]
[1609581445694,13.42800884,726.58,726.07,6.01438]
[1609581446096,13.42800884,726.58,725.34,15.0]
[1609581446296,15.0,726.57,725.19,15.0]
[1609581446497,114.8781,725.98,725.19,15.0]
[1609581446897,114.8781,725.98,724.93,84.5723]
[1609581447097,118.6311,725.98,724.93,84.5723]
[1609581447296,118.6311,725.98,725.06,17.7779]
[1609581447899,118.6311,725.98,725.06,2.7779]
[1609581448899,6.01438,725.45,725.06,2.7779]
[1609581449102,112.9006,725.4,725.06,2.7779]
[1609581449301,6.01438,725.45,725.06,2.7779]
[1609581449501,6.01438,725.45,725.06,4.343]
[1609581449701,92.4896,725.26,725.06,4.343]
[1609581450703,92.4896,725.26,725.07,2.7927]
[1609581450903,3.104,725.53,725.07,2.7927]
[1609581450904,6.01438,725.08,725.07,2.7927]
[1609581451104,114.56398,725.08,725.07,2.7927]
[1609581451504,114.56398,725.08,725.07,2.5927]
[1609581451904,114.56398,725.08,725.06,4.343]
[1609581453008,6.01438,725.08,725.06,4.343]
[1609581453407,6.01438,725.08,725.06,4.143]
[1609581453608,3.103,725.37,725.06,4.143]
[1609581454011,3.103,725.37,725.07,15.0]
[1609581454610,3.103,725.37,725.06,4.143]
[1609581454809,3.103,725.37,725.36,6.01438]
[1609581455212,3.103,725.37,724.99,2.1641]
[1609581455613,3.103,725.37,724.75,2.7926]
[1609581456212,3.103,725.37,724.55,15.0]
[1609581456213,101.1801,725.22,724.55,15.0]
[1609581456613,3.103,725.37,724.31,15.0]
[1609581456814,6.01438,725.21,725.13,6.01438]
[1609581457013,6.01438,725.21,724.54,21.8725]
[1609581458116,3.103,725.37,724.54,21.8725]
[1609581458313,3.104,725.53,724.54,21.8725]
[1609581458513,3.596,725.76,724.54,21.8725]
[1609581458713,83.8615,725.8,724.54,21.8725]
[1609581458914,6.01438,725.49,725.32,6.01438]
[1609581459716,3.15,725.79,725.33,15.0]
[1609581459915,3.15,725.79,725.33,18.678]
[1609581460718,3.15,725.79,725.33,3.678]
[1609581460918,6.01438,725.74,725.67,6.01438]
[1609581461118,114.611,725.7,725.67,6.01438]
[1609581461318,114.611,725.7,725.33,3.678]
[1609581461918,6.01438,725.74,725.33,3.678]
[1609581464821,3.15,725.79,725.53,6.01438]
[1609581465221,6.01438,725.95,725.4,4.663]
[1609581466823,6.01438,725.84,725.63,6.01438]
[1609581467825,6.01438,725.84,725.4,4.663]
[1609581468824,6.01438,725.41,725.4,4.663]
[1609581469526,6.01438,725.41,725.37,6.01438]
[1609581469728,6.01438,725.41,724.81,15.0]
[1609581470127,3.7,725.54,724.81,15.0]
[1609581470326,3.7,725.54,724.81,19.546]
[1609581470830,6.01438,725.53,725.21,6.01438]
[1609581471927,6.01438,725.53,725.22,15.0]
[1609581472129,3.7,725.54,725.22,15.0]
[1609581472828,3.7,725.54,725.53,6.01438]
[1609581473028,4.145,725.69,725.53,6.01438]
[1609581474029,4.145,725.69,725.54,15.0]
[1609581474229,8.09830017,725.93,725.54,15.0]
[1609581474930,8.09830017,725.93,725.53,6.01438]
[1609581474931,3.753,725.98,725.92,6.01438]
[1609581475130,6.01438,726.08,725.62,4.627]
[1609581476931,6.01438,725.85,725.82,6.01438]
[1609581477131,3.46,726.03,725.82,6.01438]
[1609581478233,8.11375639,726.26,725.82,6.01438]
[1609581478935,6.01438,726.01,726.0,6.01438]
[1609581479933,6.01438,726.01,725.77,3.598]
[1609581481033,6.01438,726.01,725.9,6.01438]
[1609581482938,6.01438,725.91,725.82,6.01438]
[1609581484940,6.01438,725.83,725.82,6.01438]
[1609581485240,6.01438,725.83,725.77,3.598]
[1609581485642,6.01438,725.83,725.62,4.627]
[1609581485940,6.01438,725.83,725.37,3.447]
[1609581486141,6.01438,725.83,725.22,15.0]
[1609581486341,6.01438,725.83,725.21,84.0392]
[1609581486541,6.01438,725.83,725.21,3.283]
[1609581486741,6.01438,725.83,724.99,15.0]
[1609581486944,15.0,726.0,725.41,6.01438]
[1609581487144,15.0,726.0,725.41,10.72238]
[1609581487543,15.0,726.0,725.41,4.708]
[1609581488445,91.3122,726.01,725.41,4.708]
[1609581488745,15.0,726.0,725.41,4.708]
[1609581488946,6.01438,725.42,725.41,4.708]
[1609581491651,4.932,725.73,725.41,4.708]
[1609581492149,4.932,725.73,725.3,6.01438]
[1609581492950,4.932,725.73,725.72,6.01438]
[1609581493351,8.11765049,726.08,725.72,6.01438]
[1609581494952,6.01438,725.98,725.91,6.01438]
[1609581500560,8.12598551,726.27,725.91,6.01438]
[1609581500960,6.01438,726.19,726.14,6.01438]
[1609581501160,10.10638,726.19,726.14,6.01438]
[1609581502963,4.092,726.19,726.15,15.0]
[1609581503364,8.13372374,726.37,726.15,15.0]
[1609581503565,8.13345534,726.42,726.15,15.0]
[1609581503966,8.13345534,726.42,726.14,6.01438]